bitfinex-derivatives/quotes_BTCF0:USTF0_20250709
["timestamp","ask_amount","ask_price","bid_price","bid_amount"]
[1752042275761,0.98050438,108830.0,108820.0,0.08768571]
[1752042276467,0.98050438,108830.0,108820.0,0.0738959]
[1752042277366,0.98050438,108830.0,108820.0,0.06312089]
[1752042278172,0.98050438,108830.0,108820.0,7e-08]
[1752042278173,1.72991287,108830.0,108820.0,7e-08]
[1752042279169,0.1837643,108820.0,108810.0,0.05515984]
[1752042279467,1.03822977,108820.0,108810.0,0.05515984]
[1752042280261,1.03922977,108820.0,108810.0,0.05515984]
[1752042281462,1.04122977,108820.0,108810.0,0.05515984]
[1752042281971,1.04122977,108820.0,108800.0,0.08265367]
[1752042281972,0.1837812,108810.0,108800.0,0.13781351]
[1752042282167,0.97859818,108810.0,108800.0,0.14859061]
[1752042283482,0.97992818,108810.0,108800.0,0.14859061]
[1752042283673,0.97992818,108810.0,108800.0,0.14959061]
[1752042283980,0.97992818,108810.0,108800.0,0.16582061]
[1752042284182,0.97992818,108810.0,108800.0,0.14959061]
[1752042286378,0.97992818,108810.0,108800.0,0.06693694]
[1752042286680,0.98092818,108810.0,108800.0,0.06693694]
[1752042288287,0.98092818,108810.0,108800.0,0.08316694]
[1752042288577,0.98092818,108810.0,108800.0,0.06693694]
[1752042290185,0.98092818,108810.0,108800.0,0.07138721]
[1752042291274,0.98092818,108810.0,108800.0,0.08761721]
[1752042292079,0.98092818,108810.0,108800.0,0.0876172]
[1752042294888,0.98092818,108810.0,108800.0,0.08761709]
[1752042301398,0.98092818,108810.0,108800.0,0.15404076]
[1752042302598,0.98092818,108810.0,108800.0,0.15403797]
[1752042305305,0.98092818,108810.0,108800.0,0.09887813]
[1752042306990,0.98092818,108810.0,108800.0,0.15402373]
[1752042307506,1.23193667,108810.0,108800.0,0.15403624]
[1752042307700,1.23193667,108810.0,108800.0,0.07138257]
[1752042307902,0.98092818,108810.0,108800.0,0.07138257]
[1752042308197,0.98092818,108810.0,108800.0,0.01622446]
[1752042309405,0.98092818,108810.0,108800.0,0.00544748]
[1752042310899,1.47932818,108810.0,108800.0,0.00544748]
[1752042331130,1.43938818,108810.0,108800.0,0.00544748]
[1752042331435,1.40824818,108810.0,108800.0,0.06964748]
[1752042331636,1.43196818,108810.0,108800.0,0.08485748]
[1752042331934,1.43196818,108810.0,108800.0,0.06964748]
[1752042332136,1.46506818,108810.0,108800.0,0.06964748]
[1752042334736,1.46506818,108810.0,108800.0,0.03684748]
[1752042337341,1.46506818,108810.0,108800.0,0.00544748]
[1752042337840,0.9630512,108810.0,108800.0,0.00544748]
[1752042338042,1.48024818,108810.0,108800.0,0.00544748]
[1752042338245,1.29012818,108810.0,108800.0,0.04682195]
[1752042338538,1.48020818,108810.0,108800.0,0.04682195]
[1752042340043,1.48020818,108810.0,108800.0,0.04676988]
[1752042340942,1.48020818,108810.0,108800.0,0.04237447]
[1752042343155,1.48020818,108810.0,108800.0,0.04676995]
[1752042343745,1.48020818,108810.0,108800.0,0.04237447]
[1752042344046,1.48020818,108810.0,108800.0,0.04677]
[1752042344645,1.48020818,108810.0,108800.0,0.10192811]
[1752042357557,1.44130818,108810.0,108800.0,0.10192811]
[1752042358255,1.44130818,108810.0,108800.0,0.09753258]
[1752042358456,1.44130818,108810.0,108800.0,0.10192732]
[1752042359559,1.46491818,108810.0,108800.0,0.10192732]
[1752042360260,1.46491818,108810.0,108800.0,0.1019279]
[1752042361058,1.46491818,108810.0,108800.0,0.10193733]
[1752042362357,1.46491818,108810.0,108800.0,0.09754201]
[1752042363065,1.46491818,108810.0,108800.0,0.1019369]
[1752042367567,1.44130818,108810.0,108800.0,0.1019369]
[1752042369667,1.46465818,108810.0,108800.0,0.1019369]
[1752042370471,1.27457818,108810.0,108800.0,0.1019369]
[1752042370767,1.46453818,108810.0,108800.0,0.1019369]
[1752042371064,1.02356969,108810.0,108800.0,0.1185369]
[1752042371270,1.46453818,108810.0,108800.0,0.1493369]
[1752042371870,1.46453818,108810.0,108800.0,0.16370738]
[1752042372471,1.46453818,108810.0,108800.0,0.17448524]
[1752042375169,0.9625212,108810.0,108800.0,0.17448524]
[1752042375472,1.48068818,108810.0,108800.0,0.17448524]
[1752042376173,1.48068818,108810.0,108800.0,0.15788524]
[1752042377071,1.48068818,108810.0,108800.0,0.14710738]
[1752042378578,1.48068818,108810.0,108800.0,0.16370738]
[1752042378779,1.46453818,108810.0,108800.0,0.16370738]
[1752042379984,0.9625212,108810.0,108800.0,0.16370738]
[1752042380176,1.48068818,108810.0,108800.0,0.16370738]
[1752042380480,0.9786712,108810.0,108800.0,0.16370738]
[1752042380872,1.48068818,108810.0,108800.0,0.16370738]
[1752042383386,0.9786712,108810.0,108800.0,0.16370738]
[1752042383581,1.48068818,108810.0,108800.0,0.16370738]
[1752042383780,0.9786712,108810.0,108800.0,0.16370738]
[1752042383978,1.48068818,108810.0,108800.0,0.16370738]
[1752042385182,1.29072818,108810.0,108800.0,0.16370738]
[1752042385384,1.48064818,108810.0,108800.0,0.16370738]
[1752042385882,1.48064818,108810.0,108800.0,0.16370733]
[1752042386083,1.29072818,108810.0,108800.0,0.16370733]
[1752042386288,1.48064818,108810.0,108800.0,0.16370733]
[1752042390800,0.9786312,108810.0,108800.0,0.16370733]
[1752042390986,1.48064818,108810.0,108800.0,0.16370733]
[1752042392294,1.48064818,108810.0,108800.0,0.14710733]
[1752042394098,1.48064818,108810.0,108800.0,0.11630733]
[1752042394591,1.48064818,108810.0,108800.0,0.11630734]
[1752042396890,1.73165667,108810.0,108800.0,0.11630734]
[1752042397094,1.48064818,108810.0,108800.0,0.11630734]
[1752042397293,1.48064818,108810.0,108800.0,0.11191245]
[1752042397492,1.48064818,108810.0,108800.0,0.11631051]
[1752042402107,1.46474818,108810.0,108800.0,0.11631051]
[1752042403006,1.46474818,108810.0,108800.0,0.0611524]
[1752042403208,1.71575667,108810.0,108800.0,0.0611524]
[1752042403906,1.71575667,108810.0,108800.0,0.06116423]
[1752042404611,1.71475667,108810.0,108800.0,0.06116423]
[1752042404801,1.71875667,108810.0,108800.0,0.06216423]
[1752042404996,1.46874818,108810.0,108800.0,0.06116423]
[1752042405509,1.44514818,108810.0,108800.0,0.06116423]
[1752042405709,1.46874818,108810.0,108800.0,0.06116423]
[1752042406016,1.47074818,108810.0,108800.0,0.04679379]
[1752042406207,1.47074818,108810.0,108800.0,0.06096213]
[1752042414212,1.47062818,108810.0,108800.0,0.06096213]
[1752042415918,1.46929818,108810.0,108800.0,0.06096213]
[1752042418721,1.47062818,108810.0,108800.0,0.06096213]
[1752042418914,1.47062818,108810.0,108800.0,0.06094282]
[1752042422625,1.47062818,108810.0,108800.0,0.06092991]
[1752042436147,1.72163667,108810.0,108800.0,0.06092991]
[1752042436440,1.72163667,108810.0,108800.0,0.03034414]
[1752042442146,1.47062818,108810.0,108800.0,0.03034414]
[1752042442749,1.47062818,108810.0,108800.0,0.01956532]
[1752042443948,1.47062818,108810.0,108800.0,0.06092991]
[1752042445650,1.47062818,108810.0,108800.0,0.01978618]
[1752042448847,1.47062818,108810.0,108800.0,0.06115805]
[1752042449058,1.72163667,108810.0,108800.0,0.06115805]
[1752042453348,2.10303667,108810.0,108800.0,0.06115805]
[1752042453549,1.3500112,108810.0,108800.0,0.06115805]
[1752042453746,1.85202818,108810.0,108800.0,0.06115805]
[1752042456258,1.85202818,108810.0,108800.0,0.06116112]
[1752042459953,1.1602112,108810.0,108800.0,0.06116112]
[1752042460160,1.51255969,108810.0,108800.0,0.07660112]
[1752042460359,1.78705818,108810.0,108800.0,0.13740112]
[1752042460550,1.76356818,108810.0,108800.0,0.13740112]
[1752042460950,1.78705818,108810.0,108800.0,0.13740112]
[1752042461167,1.76356818,108810.0,108800.0,0.13740112]
[1752042461464,1.76356818,108810.0,108800.0,0.12302967]
[1752042461757,1.78705818,108810.0,108800.0,0.12302967]
[1752042461956,1.76356818,108810.0,108800.0,0.12302967]
[1752042462156,1.78705818,108810.0,108800.0,0.12302967]
[1752042462554,1.76356818,108810.0,108800.0,0.12302967]
[1752042463154,1.78705818,108810.0,108800.0,0.12302967]
[1752042463456,1.78705818,108810.0,108800.0,0.12289052]
[1752042464362,1.78705818,108810.0,108800.0,0.12289041]
[1752042464760,1.78705818,108810.0,108800.0,0.11861494]
[1752042466064,1.78705818,108810.0,108800.0,0.12289525]
[1752042466262,1.78705818,108810.0,108800.0,0.12289522]
[1752042470666,1.81725818,108810.0,108800.0,0.12289522]
[1752042470862,1.81725818,108810.0,108800.0,0.11861494]
[1752042471167,1.81725818,108810.0,108800.0,0.12290782]
[1752042475069,1.84935818,108810.0,108800.0,0.12290782]
[1752042479375,1.3473412,108810.0,108800.0,0.12290782]
[1752042479568,1.84935818,108810.0,108800.0,0.11861494]
[1752042479775,1.84935818,108810.0,108800.0,0.12290428]
[1752042479967,1.84935818,108810.0,108800.0,0.09270428]
[1752042481580,1.84935818,108810.0,108800.0,0.09270448]
[1752042482177,1.46795818,108810.0,108800.0,0.09270448]
[1752042482580,1.46795818,108810.0,108800.0,0.10348239]
[1752042483373,1.46795818,108810.0,108800.0,0.08804239]
[1752042484479,1.46795818,108810.0,108800.0,0.0880415]
[1752042486883,1.46795818,108810.0,108800.0,0.0574415]
[1752042487082,1.46662818,108810.0,108800.0,0.0574415]
[1752042490180,1.27698818,108810.0,108800.0,0.0574415]
[1752042490386,1.46662818,108810.0,108800.0,0.0735615]
[1752042492580,1.46662818,108810.0,108800.0,0.11794608]
[1752042498105,1.27698818,108810.0,108800.0,0.11794608]
[1752042498304,1.46658818,108810.0,108800.0,0.11794608]
[1752042499104,1.46658818,108810.0,108800.0,0.11795658]
[1752042500106,1.46658818,108810.0,108800.0,0.11795664]
[1752042501008,1.46658818,108810.0,108800.0,0.10183664]
[1752042504796,1.46658818,108810.0,108800.0,0.04667415]
[1752042506818,1.46658818,108810.0,108800.0,0.04668929]
[1752042508310,1.46658818,108810.0,108800.0,0.04669408]
[1752042510107,1.46658818,108810.0,108800.0,0.00531435]
[1752042511208,1.46658818,108810.0,108800.0,0.00532084]
[1752042512406,1.46658818,108810.0,108800.0,0.04669804]
[1752042514314,1.46658818,108810.0,108800.0,0.04669853]
[1752042515412,1.27698818,108810.0,108800.0,0.04669853]
[1752042515607,1.46658818,108810.0,108800.0,0.10186814]
[1752042517314,1.46658818,108810.0,108800.0,0.09754681]
[1752042521918,1.46658818,108810.0,108800.0,0.0423772]
[1752042532029,1.28280698,108810.0,108800.0,0.0423772]
[1752042535025,1.28280698,108810.0,108800.0,0.09754681]
[1752042537343,1.28280698,108810.0,108800.0,0.0423772]
[1752042539136,1.28280698,108810.0,108800.0,0.09754681]
[1752042546133,1.46658788,108810.0,108800.0,0.09754681]
[1752042549639,1.46658788,108810.0,108800.0,0.09863783]
[1752042550443,1.46658788,108810.0,108800.0,0.14002172]
[1752042550736,0.0459509,108800.0,108770.0,0.28851679]
[1752042550944,0.1838322,108780.0,108770.0,0.43886036]
[1752042551135,0.490024,108780.0,108770.0,0.40828866]
[1752042551334,0.490024,108780.0,108770.0,0.72589156]
[1752042551536,0.68258101,108780.0,108770.0,0.72589156]
[1752042551735,0.43157252,108780.0,108770.0,0.72589156]
[1752042551935,0.68258101,108780.0,108770.0,0.72789156]
[1752042552534,0.69835101,108780.0,108770.0,0.76826502]
[1752042552737,0.505794,108780.0,108770.0,0.76826502]
[1752042552937,0.505794,108780.0,108770.0,0.76426502]
[1752042553140,0.506794,108780.0,108770.0,0.76526502]
[1752042553444,0.86437743,108780.0,108770.0,0.76526502]
[1752042553742,0.86337743,108780.0,108770.0,0.76426502]
[1752042553944,1.11738592,108780.0,108770.0,0.82846502]
[1752042554143,1.11738592,108780.0,108770.0,0.70031159]
[1752042554344,0.86637743,108780.0,108770.0,0.70031159]
[1752042554643,0.508794,108780.0,108770.0,0.70031159]
[1752042555336,0.509794,108780.0,108770.0,0.70031159]
[1752042560449,0.512444,108780.0,108770.0,0.70031159]
[1752042563752,0.78443388,108780.0,108770.0,0.70031159]
[1752042564338,0.59495388,108780.0,108770.0,0.70031159]
[1752042564842,0.78443388,108780.0,108770.0,0.70031159]
[1752042565755,0.81193718,108780.0,108770.0,0.51644759]
[1752042571261,0.56092869,108780.0,108770.0,0.51644759]
[1752042571461,0.81193718,108780.0,108770.0,0.53369201]
[1752042571758,0.701924,108780.0,108770.0,0.53369201]
[1752042572661,0.512444,108780.0,108770.0,0.53369201]
[1752042572960,0.83940047,108780.0,108770.0,0.53369201]
[1752042573361,0.58839198,108780.0,108770.0,0.53369201]
[1752042573562,0.83940047,108780.0,108770.0,0.53369201]
[1752042573761,0.701884,108780.0,108770.0,0.53369201]
[1752042574565,0.699234,108780.0,108770.0,0.53369201]
[1752042574769,0.731634,108780.0,108770.0,0.53369201]
[1752042575674,0.542194,108780.0,108770.0,0.53369201]
[1752042575877,0.731634,108780.0,108770.0,0.53369201]
[1752042576678,0.542194,108780.0,108770.0,0.53369201]
[1752042576865,0.86915047,108780.0,108770.0,0.53369201]
[1752042577069,0.89935047,108780.0,108770.0,0.53369201]
[1752042577275,0.761834,108780.0,108770.0,0.53369201]
[1752042577978,0.761834,108780.0,108770.0,0.50049201]
[1752042578279,0.764484,108780.0,108770.0,0.50049201]
[1752042578465,0.764484,108780.0,108770.0,0.49509201]
[1752042579079,0.90200047,108780.0,108770.0,0.49509201]
[1752042579382,0.90200047,108780.0,108770.0,0.48510201]
[1752042579580,0.90200047,108780.0,108770.0,0.49509201]
[1752042580172,0.90200047,108780.0,108770.0,0.46309201]
[1752042580882,0.90200047,108780.0,108770.0,0.25614833]
[1752042581083,0.90200047,108780.0,108770.0,0.43999743]
[1752042581783,0.90196047,108780.0,108770.0,0.43999743]
[1752042582184,0.92684047,108780.0,108770.0,0.43999743]
[1752042582483,0.73414069,108780.0,108770.0,0.62116667]
[1752042582878,0.73414069,108780.0,108770.0,0.7315172]
[1752042583185,0.73414069,108780.0,108770.0,0.62116667]
[1752042583587,0.54474069,108780.0,108770.0,0.62116667]
[1752042583785,0.73414069,108780.0,108770.0,0.62116667]
[1752042583978,0.73414069,108780.0,108770.0,0.57793559]
[1752042584384,0.73214069,108780.0,108770.0,0.57893559]
[1752042584884,0.73114069,108780.0,108770.0,0.57893559]
[1752042585087,0.73114069,108780.0,108770.0,0.44099743]
[1752042585586,0.2907322,108780.0,108770.0,0.44099743]
[1752042585786,0.70626069,108780.0,108770.0,0.57893559]
[1752042585975,0.70626069,108780.0,108770.0,0.44099743]
[1752042587192,0.4552522,108780.0,108770.0,0.44099743]
[1752042587375,0.70626069,108780.0,108770.0,0.44099743]
[1752042587788,0.70626069,108780.0,108770.0,0.55135006]
[1752042587987,0.2658522,108780.0,108770.0,0.55135006]
[1752042588187,0.4552122,108780.0,108770.0,0.44099743]
[1752042588387,0.4552122,108780.0,108770.0,0.50549743]
[1752042588693,0.2658522,108780.0,108770.0,0.50549743]
[1752042588885,0.4552122,108780.0,108770.0,0.50549743]
[1752042589894,0.70622069,108780.0,108770.0,0.50549743]
[1752042590189,0.4552122,108780.0,108770.0,0.50549743]
[1752042591892,0.4552122,108780.0,108770.0,0.61583895]
[1752042592092,0.4552122,108780.0,108770.0,0.58283895]
[1752042593292,0.70622069,108780.0,108770.0,0.58283895]
[1752042593492,0.70622069,108780.0,108770.0,0.47249743]
[1752042595897,0.70622069,108780.0,108770.0,0.5828325]
[1752042597197,0.70622069,108780.0,108770.0,0.5513325]
[1752042597394,0.73110069,108780.0,108770.0,0.5513325]
[1752042597693,0.73110069,108780.0,108770.0,0.57342708]
[1752042600493,0.4800922,108780.0,108770.0,0.57342708]
[1752042600698,0.73110069,108780.0,108770.0,0.57342708]
[1752042601091,0.4800922,108780.0,108770.0,0.57342708]
[1752042601291,0.73110069,108780.0,108770.0,0.57342708]
[1752042601805,0.2907322,108780.0,108770.0,0.57342708]
[1752042601993,0.265852,108780.0,108770.0,0.57342708]
[1752042602299,0.265852,108780.0,108770.0,0.60502708]
[1752042606909,0.51686049,108780.0,108770.0,0.60502708]
[1752042607703,0.51686049,108780.0,108770.0,0.32241859]
[1752042607909,0.54043049,108780.0,108770.0,0.57342708]
[1752042609108,0.289422,108780.0,108770.0,0.57342708]
[1752042609311,0.54043049,108780.0,108770.0,0.57342708]
[1752042610305,0.289422,108780.0,108770.0,0.57342708]
[1752042610505,0.54043049,108780.0,108770.0,0.57342708]
[1752042619724,0.54043049,108780.0,108770.0,0.55618266]
[1752042620022,0.289422,108780.0,108770.0,0.55618266]
[1752042620223,0.54043049,108780.0,108770.0,0.55618266]
[1752042621221,0.289422,108780.0,108770.0,0.55618266]
[1752042621426,0.54043049,108780.0,108770.0,0.55618266]
[1752042636244,0.289422,108780.0,108770.0,0.55618266]
[1752042636445,0.54043049,108780.0,108770.0,0.55618266]
[1752042641248,0.289422,108780.0,108770.0,0.55618266]
[1752042641448,0.54043049,108780.0,108770.0,0.55618266]
[1752042650953,0.289422,108780.0,108770.0,0.55618266]
[1752042651248,0.289422,108780.0,108770.0,0.30517417]
[1752042651455,0.289422,108780.0,108770.0,0.55618266]
[1752042653256,0.54043049,108780.0,108770.0,0.55618266]
[1752042658254,0.289422,108780.0,108770.0,0.55618266]
[1752042662861,0.08202,108780.0,108770.0,1.18719115]
[1752042663062,0.01942,108780.0,108770.0,1.25259115]
[1752042663767,0.25124,108790.0,108780.0,0.1838323]
[1752042664062,0.07733,108790.0,108780.0,1.1814885]
[1752042664259,0.07733,108790.0,108780.0,1.2468885]
[1752042664965,0.2611454,108790.0,108780.0,1.2468885]
[1752042665261,0.2651454,108790.0,108780.0,1.2478885]
[1752042665958,0.2671454,108790.0,108780.0,1.2478885]
[1752042667165,0.2671454,108790.0,108780.0,1.2325785]
[1752042667556,0.2671454,108790.0,108780.0,0.8292785]
[1752042667761,0.2671454,108790.0,108780.0,0.8445885]
[1752042670360,0.2671454,108790.0,108780.0,0.34257152]
[1752042670567,0.2671454,108790.0,108780.0,0.8445885]
[1752042670768,0.2671454,108790.0,108780.0,0.7971785]
[1752042671064,0.2671454,108790.0,108780.0,0.8134285]
[1752042671257,0.2671454,108790.0,108780.0,0.7971785]
[1752042671453,0.2671454,108790.0,108780.0,0.8134285]
[1752042672171,0.51815389,108790.0,108780.0,0.8134285]
[1752042672567,0.51815389,108790.0,108780.0,0.70309928]
[1752042673170,0.2671454,108790.0,108780.0,0.70309928]
[1752042674969,0.2671454,108790.0,108780.0,0.8134285]
[1752042675472,0.2671454,108790.0,108780.0,0.70309928]
[1752042675666,0.2671454,108790.0,108780.0,0.8134285]
[1752042681177,0.2671454,108790.0,108780.0,0.78572923]
[1752042683998,0.08333,108790.0,108780.0,0.78572923]
[1752042684175,0.2084192,108800.0,108790.0,0.1838154]
[1752042684475,0.53037977,108800.0,108790.0,0.58879587]
[1752042684678,0.50575977,108800.0,108790.0,0.58879587]
[1752042684874,0.32196057,108800.0,108790.0,0.53370708]
[1752042685276,0.32696057,108800.0,108790.0,0.53470708]
[1752042685476,0.32996057,108800.0,108790.0,0.53570708]
[1752042686378,0.31371057,108800.0,108790.0,0.81027557]
[1752042686577,0.32996057,108800.0,108790.0,0.87377557]
[1752042686778,0.32996057,108800.0,108790.0,0.62276708]
[1752042687179,0.32996057,108800.0,108790.0,0.62176708]
[1752042687391,0.32796057,108800.0,108790.0,0.62176708]
[1752042687585,0.32796057,108800.0,108790.0,0.53913389]
[1752042688079,0.32696057,108800.0,108790.0,0.54113389]
[1752042688280,0.32196057,108800.0,108790.0,0.62475961]
[1752042688485,0.32196057,108800.0,108790.0,0.81403961]
[1752042688784,0.32196057,108800.0,108790.0,0.81203961]
[1752042688977,0.32296057,108800.0,108790.0,0.81503961]
[1752042691786,0.32296057,108800.0,108790.0,0.73241389]
[1752042692884,0.35376057,108800.0,108790.0,0.84274311]
[1752042693285,0.78856806,108800.0,108790.0,0.84274311]
[1752042693485,0.81996806,108800.0,108790.0,0.84274311]
[1752042694085,0.81996806,108800.0,108790.0,0.81918311]
[1752042694580,0.229715,108820.0,108810.0,0.2756517]
[1752042694777,1.12468706,108820.0,108810.0,0.30608732]
[1752042694978,1.12468706,108820.0,108810.0,0.45104059]
[1752042695988,1.12768706,108820.0,108810.0,0.26825849]
[1752042696188,1.12768706,108820.0,108810.0,0.45204059]
[1752042697082,1.12988706,108820.0,108810.0,0.45204059]
[1752042697594,0.87887857,108820.0,108810.0,0.45204059]
[1752042697890,1.12988706,108820.0,108810.0,0.45204059]
[1752042698592,1.12988706,108820.0,108810.0,0.50711942]
[1752042698992,1.12988706,108820.0,108810.0,0.25611093]
[1752042699293,1.12988706,108820.0,108810.0,0.50711942]
[1752042699992,0.94044706,108820.0,108810.0,0.50711942]
[1752042700195,1.12988706,108820.0,108810.0,0.50711942]
[1752042705299,1.12988706,108820.0,108810.0,0.25611093]
[1752042705596,1.12988706,108820.0,108810.0,0.50711942]
[1752042710701,0.94602306,108820.0,108810.0,0.50711942]
[1752042711206,0.94602306,108820.0,108810.0,0.32333732]
[1752042711406,1.19703155,108820.0,108810.0,0.05607883]
[1752042711801,1.38089555,108820.0,108810.0,0.001]
[1752042714898,0.87887857,108820.0,108810.0,0.001]
[1752042715095,1.38089555,108820.0,108810.0,0.05607883]
[1752042717209,1.25904898,108820.0,108810.0,0.05607883]
[1752042717809,1.25904898,108820.0,108810.0,0.23986093]
[1752042718713,1.25904898,108820.0,108810.0,0.24238436]
[1752042720405,1.38089555,108820.0,108810.0,0.24238436]
[1752042721911,0.87887857,108820.0,108810.0,0.24238436]
[1752042722120,1.38089555,108820.0,108810.0,0.24238436]
[1752042722512,1.38089555,108820.0,108810.0,0.05860226]
[1752042723417,1.38089555,108820.0,108810.0,0.24238426]
[1752042724118,1.38089555,108820.0,108810.0,0.49339275]
[1752042724818,1.38089555,108820.0,108810.0,0.05860226]
[1752042733435,0.87887857,108820.0,108810.0,0.05860226]
[1752042733635,1.38089555,108820.0,108810.0,0.05860226]
[1752042736438,0.87887857,108820.0,108810.0,0.05860226]
[1752042736833,1.38089555,108820.0,108810.0,0.05860226]
[1752042737636,1.38089555,108820.0,108810.0,0.14122051]
[1752042737835,1.38089555,108820.0,108810.0,0.05860226]
[1752042738235,1.19703155,108820.0,108810.0,0.05860226]
[1752042738440,1.38089555,108820.0,108810.0,0.05860226]
[1752042740744,1.38089555,108820.0,108810.0,0.14122051]
[1752042740936,1.38089555,108820.0,108810.0,0.05860226]
[1752042744347,1.25904898,108820.0,108810.0,0.05860226]
[1752042744547,1.38089555,108820.0,108810.0,0.05860226]
[1752042746840,1.38089555,108820.0,108810.0,0.00352343]
[1752042749149,1.38089555,108820.0,108810.0,0.05860226]
[1752042750351,1.38089555,108820.0,108810.0,0.00352343]
[1752042755058,1.25904898,108820.0,108810.0,0.05860226]
[1752042755858,1.25904898,108820.0,108810.0,0.00352343]
[1752042758259,1.38089555,108820.0,108810.0,0.00352343]
[1752042758652,1.38089555,108820.0,108810.0,0.05860226]
[1752042762965,1.19703155,108820.0,108810.0,0.05860226]
[1752042763164,1.38089555,108820.0,108810.0,0.05860226]
[1752042769775,1.19703155,108820.0,108810.0,0.24238426]
[1752042770672,1.38089555,108820.0,108810.0,0.24238426]
[1752042774475,1.38089555,108820.0,108810.0,0.05860226]
[1752042776380,1.38089555,108820.0,108810.0,0.14122051]
[1752042779180,1.38089555,108820.0,108810.0,0.05860226]
[1752042790688,1.19703155,108820.0,108810.0,0.05860226]
[1752042791695,1.38089555,108820.0,108810.0,0.05860226]
[1752042792799,1.38089555,108820.0,108810.0,0.24238426]
[1752042794197,1.38089555,108820.0,108810.0,0.32500251]
[1752042794997,1.38089555,108820.0,108810.0,0.24238426]
[1752042795892,1.38037555,108820.0,108810.0,0.24238426]
[1752042796798,1.19145555,108820.0,108810.0,0.24238426]
[1752042797001,1.38037555,108820.0,108810.0,0.24238426]
[1752042797386,0.87835857,108820.0,108810.0,0.24238426]
[1752042797591,1.38037555,108820.0,108810.0,0.24238426]
[1752042797799,0.567592,108820.0,108810.0,0.50981275]
[1752042797999,1.25852898,108820.0,108810.0,0.54051275]
[1752042798297,1.07466498,108820.0,108810.0,0.54051275]
[1752042798501,1.25852898,108820.0,108810.0,0.54051275]
[1752042799596,0.756512,108820.0,108810.0,0.54051275]
[1752042799799,1.25852898,108820.0,108810.0,0.54051275]
[1752042802501,1.25852898,108820.0,108810.0,0.52409275]
[1752042802701,1.25852898,108820.0,108810.0,0.54051275]
[1752042805006,1.25852898,108820.0,108810.0,0.623131]
[1752042805703,1.25852898,108820.0,108810.0,0.54051275]
[1752042806512,1.25852898,108820.0,108810.0,0.28950426]
[1752042807610,1.07466498,108820.0,108810.0,0.28950426]
[1752042808411,1.07466498,108820.0,108810.0,0.54051275]
[1752042810213,1.07466498,108820.0,108810.0,0.28950426]
[1752042811013,0.61781649,108820.0,108810.0,0.54051275]
[1752042811199,0.486218,108820.0,108810.0,0.57351275]
[1752042811404,0.440275,108820.0,108810.0,0.59765275]
[1752042811607,0.251355,108820.0,108810.0,0.59765275]
[1752042811913,0.440235,108820.0,108810.0,0.59765275]
[1752042812313,0.251355,108820.0,108810.0,0.59765275]
[1752042812512,0.440235,108820.0,108810.0,0.59765275]
[1752042812900,0.440235,108820.0,108810.0,0.34664426]
[1752042813107,0.440235,108820.0,108810.0,0.59765275]
[1752042813414,0.69124349,108820.0,108810.0,0.59765275]
[1752042814307,0.69124349,108820.0,108810.0,0.680271]
[1752042814508,0.69124349,108820.0,108810.0,0.57351275]
[1752042816903,0.69124349,108820.0,108810.0,0.60105217]
[1752042817915,0.440235,108820.0,108810.0,0.60105217]
[1752042818217,0.69124349,108820.0,108810.0,0.60105217]
[1752042822114,0.69124349,108820.0,108810.0,0.35004368]
[1752042822310,0.69124349,108820.0,108810.0,0.60105217]
[1752042824617,0.71567349,108820.0,108810.0,0.60105217]
[1752042825207,0.464665,108820.0,108810.0,0.60105217]
[1752042825418,0.71567349,108820.0,108810.0,0.60105217]
[1752042831923,0.529265,108820.0,108810.0,0.60105217]
[1752042832115,0.78027349,108820.0,108810.0,0.60105217]
[1752042834923,0.78027349,108820.0,108810.0,0.56805217]
[1752042836131,0.78027349,108820.0,108810.0,0.53735217]
[1752042836331,0.78027349,108820.0,108810.0,0.59249181]
[1752042836631,1.21514598,108820.0,108810.0,0.57607181]
[1752042837223,0.713129,108820.0,108810.0,0.57607181]
[1752042837437,0.96413749,108820.0,108810.0,0.57607181]
[1752042838835,0.96413749,108820.0,108810.0,0.32506332]
[1752042839035,0.96413749,108820.0,108810.0,0.57607181]
[1752042841538,0.78027349,108820.0,108810.0,0.57607181]
[1752042841739,0.96413749,108820.0,108810.0,0.57607181]
[1752042841933,0.96413749,108820.0,108810.0,0.59233181]
[1752042846632,0.96413749,108820.0,108810.0,0.34132332]
[1752042846927,0.96413749,108820.0,108810.0,0.59233181]
[1752042847138,0.96545749,108820.0,108810.0,0.59233181]
[1752042849039,0.96545749,108820.0,108810.0,0.34132332]
[1752042849239,0.96545749,108820.0,108810.0,0.59233181]
[1752042849439,1.21646598,108820.0,108810.0,0.59233181]
[1752042852450,1.21646598,108820.0,108810.0,0.53719217]
[1752042852938,1.21646598,108820.0,108810.0,0.26992368]
[1752042853139,1.21646598,108820.0,108810.0,0.52093217]
[1752042853345,1.33831255,108820.0,108810.0,0.08614168]
[1752042854045,1.33831255,108820.0,108810.0,0.26992368]
[1752042855146,1.21646598,108820.0,108810.0,0.26992368]
[1752042858346,1.33831255,108820.0,108810.0,0.26992368]
[1752042858749,1.33831255,108820.0,108810.0,0.32507046]
[1752042858941,1.33831255,108820.0,108810.0,0.26992368]
[1752042859247,1.33831255,108820.0,108810.0,0.52093217]
[1752042860350,1.33831255,108820.0,108810.0,0.53627217]
[1752042860552,1.33831255,108820.0,108810.0,0.52093217]
[1752042860849,1.33831255,108820.0,108810.0,0.53627217]
[1752042861052,1.33831255,108820.0,108810.0,0.52093217]
[1752042861348,1.33831255,108820.0,108810.0,0.53627217]
[1752042862453,1.15444855,108820.0,108810.0,0.53627217]
[1752042862749,1.33831255,108820.0,108810.0,0.53627217]
[1752042863851,1.15444855,108820.0,108810.0,0.53627217]
[1752042864149,1.33831255,108820.0,108810.0,0.53627217]
[1752042864350,1.21646598,108820.0,108810.0,0.53627217]
[1752042864552,1.33831255,108820.0,108810.0,0.28526368]
[1752042865260,1.33831255,108820.0,108810.0,0.10148168]
[1752042866262,1.33831255,108820.0,108810.0,0.32508621]
[1752042868959,1.33831255,108820.0,108810.0,0.14130421]
[1752042876256,1.15444855,108820.0,108810.0,0.32508621]
[1752042876452,1.33831255,108820.0,108810.0,0.32508621]
[1752042882066,1.15444855,108820.0,108810.0,0.32508621]
[1752042882263,1.33831255,108820.0,108810.0,0.32508621]
[1752042882664,0.83629557,108820.0,108810.0,0.5760947]
[1752042882865,1.08730406,108820.0,108810.0,0.5917347]
[1752042883866,1.33831255,108820.0,108810.0,0.5917347]
[1752042884067,1.33831255,108820.0,108810.0,0.6227347]
[1752042884466,1.08730406,108820.0,108810.0,0.6227347]
[1752042885265,1.08730406,108820.0,108810.0,0.54011645]
[1752042887170,0.83629557,108820.0,108810.0,0.6227347]
[1752042887373,1.08730406,108820.0,108810.0,0.6227347]
[1752042890079,1.33831255,108820.0,108810.0,0.6227347]
[1752042893674,0.83629557,108820.0,108810.0,0.6227347]
[1752042893874,1.08730406,108820.0,108810.0,0.6227347]
[1752042894371,1.04623406,108820.0,108810.0,0.6070947]
[1752042894577,1.06969406,108820.0,108810.0,0.6227347]
[1752042895375,1.06969406,108820.0,108810.0,0.56757217]
[1752042895677,1.32070255,108820.0,108810.0,0.56757217]
[1752042896876,1.13683855,108820.0,108810.0,0.56757217]